[Event "Live Chess"]
[Site "Chess.com"]
[Date "2023.05.21"]
[Round "-"]
[White "GEMdzq"]
[Black "Doge_Dandolo"]
[Result "0-1"]
[WhiteElo "2222"]
[BlackElo "1892"]
[TimeControl "300"]
[EndTime "7:23:40 PDT"]
[Termination "Doge_Dandolo won on time"]

1. e4 {[%clk 0:04:58.9]} 1... c6 {[%clk 0:04:52.5]} 2. d4 {[%clk 0:04:57.1]}
2... d5 {[%clk 0:04:49.5]} 3. e5 {[%clk 0:04:56.2]} 3... Bf5 {[%clk 0:04:40.9]}
4. h4 {[%clk 0:04:54.8]} 4... h5 {[%clk 0:04:37.3]} 5. c4 {[%clk 0:04:53.5]}
5... e6 {[%clk 0:04:31.7]} 6. Nc3 {[%clk 0:04:52.1]} 6... dxc4 {[%clk
0:04:29.5]} 7. Bxc4 {[%clk 0:04:51.6]} 7... Nd7 {[%clk 0:04:22.6]} 8. Bd3 {[%clk
0:04:46.7]} 8... Bxd3 {[%clk 0:04:17.5]} 9. Qxd3 {[%clk 0:04:45.9]} 9... Be7
{[%clk 0:04:12.2]} 10. Nf3 {[%clk 0:04:44.4]} 10... c5 {[%clk 0:04:02.9]} 11. d5
{[%clk 0:04:38.8]} 11... exd5 {[%clk 0:04:00.8]} 12. Nxd5 {[%clk 0:04:37.5]}
12... Nh6 {[%clk 0:03:57.4]} 13. Nxe7 {[%clk 0:04:09.6]} 13... Qxe7 {[%clk
0:03:54.9]} 14. O-O {[%clk 0:04:08.3]} 14... Rd8 {[%clk 0:03:42.2]} 15. Bg5
{[%clk 0:03:52.1]} 15... f6 {[%clk 0:03:34.6]} 16. exf6 {[%clk 0:03:45.8]} 16...
Nxf6 {[%clk 0:03:27]} 17. Qb3 {[%clk 0:03:22.3]} 17... Kf8 {[%clk 0:03:05.8]}
18. Rfe1 {[%clk 0:03:20.6]} 18... Qf7 {[%clk 0:03:02.8]} 19. Qc3 {[%clk
0:03:11.9]} 19... b6 {[%clk 0:02:55]} 20. Ne5 {[%clk 0:03:08.4]} 20... Qe8
{[%clk 0:02:45.9]} 21. Qb3 {[%clk 0:02:24.3]} 21... Rd4 {[%clk 0:02:23.9]} 22.
Nf3 {[%clk 0:01:56.7]} 22... Re4 {[%clk 0:02:13.3]} 23. Rxe4 {[%clk 0:01:55.7]}
23... Qxe4 {[%clk 0:02:10.6]} 24. Rd1 {[%clk 0:01:46]} 24... Qe7 {[%clk
0:02:03.8]} 25. Bf4 {[%clk 0:01:37.3]} 25... Nf5 {[%clk 0:01:55]} 26. Ng5 {[%clk
0:01:28.4]} 26... Nd4 {[%clk 0:01:44.5]} 27. Qc4 {[%clk 0:00:54.3]} 27... Ne2+
{[%clk 0:01:27.1]} 28. Kh2 {[%clk 0:00:51.7]} 28... Nxf4 {[%clk 0:01:25.6]} 29.
Qxf4 {[%clk 0:00:50.2]} 29... Rh6 {[%clk 0:01:21.5]} 30. Qb8+ {[%clk 0:00:43.5]}
30... Ne8 {[%clk 0:01:17.1]} 31. Rd8 {[%clk 0:00:36.5]} 31... Rf6 {[%clk
0:01:07.4]} 32. Nh7+ {[%clk 0:00:25.7]} 32... Kf7 {[%clk 0:01:05.7]} 33. Nxf6
{[%clk 0:00:23.9]} 33... Nxf6 {[%clk 0:01:00.4]} 34. Rc8 {[%clk 0:00:17.4]}
34... Kg6 {[%clk 0:00:56.3]} 35. Qg3+ {[%clk 0:00:14.1]} 35... Kh7 {[%clk
0:00:54.1]} 36. Rc7 {[%clk 0:00:13]} 36... Ng4+ {[%clk 0:00:48.7]} 37. Kh3
{[%clk 0:00:11.7]} 37... Qf6 {[%clk 0:00:45.1]} 38. Qd3+ {[%clk 0:00:10.2]}
38... Kh6 {[%clk 0:00:42.4]} 39. Kg3 {[%clk 0:00:06.5]} 39... Qxf2+ {[%clk
0:00:39.7]} 40. Kh3 {[%clk 0:00:05.4]} 40... Qf6 {[%clk 0:00:36.8]} 41. Qd2+
{[%clk 0:00:04]} 41... Kh7 {[%clk 0:00:35.1]} 42. Rd7 {[%clk 0:00:03.9]} 42...
Nf2+ {[%clk 0:00:29]} 43. Kg3 {[%clk 0:00:02.2]} 43... Ne4+ {[%clk 0:00:27.7]}
0-1

[Event "Live Chess"]
[Site "Chess.com"]
[Date "2023.05.21"]
[Round "-"]
[White "OleksiyJr1"]
[Black "Inglaterra"]
[Result "0-1"]
[WhiteElo "1040"]
[BlackElo "2051"]
[TimeControl "300"]
[EndTime "7:23:46 PDT"]
[Termination "Inglaterra won by resignation"]

1. e4 {[%clk 0:04:59]} 1... c5 {[%clk 0:04:54.8]} 2. Nf3 {[%clk 0:04:58.4]} 2...
e6 {[%clk 0:04:52.2]} 3. Bc4 {[%clk 0:04:54.6]} 3... a6 {[%clk 0:04:50.3]} 4.
Nc3 {[%clk 0:04:47.2]} 4... Nc6 {[%clk 0:04:49.8]} 5. d4 {[%clk 0:04:44.9]} 5...
cxd4 {[%clk 0:04:47.5]} 6. Nxd4 {[%clk 0:04:44.8]} 6... Qc7 {[%clk 0:04:40.4]}
7. Nxc6 {[%clk 0:04:40.8]} 7... Qxc6 {[%clk 0:04:32.8]} 8. b3 {[%clk 0:04:37.8]}
8... b5 {[%clk 0:04:30.2]} 9. Bd3 {[%clk 0:04:31.8]} 9... Qxc3+ {[%clk 0:04:28]}
10. Qd2 {[%clk 0:04:25.7]} 10... Qxa1 {[%clk 0:04:24.3]} 11. Qf4 {[%clk
0:04:23]} 0-1

[Event "Live Chess"]
[Site "Chess.com"]
[Date "2023.05.21"]
[Round "-"]
[White "Mugzwang"]
[Black "Pandreq"]
[Result "0-1"]
[WhiteElo "1448"]
[BlackElo "1228"]
[TimeControl "300"]
[EndTime "7:23:48 PDT"]
[Termination "Pandreq won by resignation"]

1. Nf3 {[%clk 0:04:46.1]} 1... d5 {[%clk 0:04:54.3]} 2. c4 {[%clk 0:04:44.7]}
2... c6 {[%clk 0:04:50.2]} 3. g3 {[%clk 0:04:40.2]} 3... Bf5 {[%clk 0:04:43.5]}
4. Bg2 {[%clk 0:04:38.1]} 4... e6 {[%clk 0:04:42.1]} 5. O-O {[%clk 0:04:36.6]}
5... Bc5 {[%clk 0:04:34.7]} 6. Qb3 {[%clk 0:04:32.5]} 6... b6 {[%clk 0:04:32.4]}
7. d4 {[%clk 0:04:24.4]} 7... Bd6 {[%clk 0:04:23.3]} 8. Nc3 {[%clk 0:04:11.1]}
8... Ne7 {[%clk 0:04:15.3]} 9. Bg5 {[%clk 0:03:56.2]} 9... O-O {[%clk
0:04:12.9]} 10. cxd5 {[%clk 0:03:50.4]} 10... cxd5 {[%clk 0:04:09.2]} 11. Nb5
{[%clk 0:03:46.4]} 11... Qd7 {[%clk 0:03:55.1]} 12. Rac1 {[%clk 0:03:39.8]}
12... Nbc6 {[%clk 0:03:52.5]} 13. Nxd6 {[%clk 0:03:27.8]} 13... Qxd6 {[%clk
0:03:50.7]} 14. Bf4 {[%clk 0:03:26.6]} 14... Qd7 {[%clk 0:03:46.7]} 15. Ne5
{[%clk 0:03:15.3]} 15... Nxe5 {[%clk 0:03:44]} 16. Bxe5 {[%clk 0:03:09.5]} 16...
Nc6 {[%clk 0:03:43.1]} 17. Bf4 {[%clk 0:02:58.8]} 17... Nxd4 {[%clk 0:03:38.2]}
18. Qd1 {[%clk 0:02:32.3]} 18... Rfc8 {[%clk 0:03:23.9]} 19. Be5 {[%clk
0:02:15.5]} 19... Rxc1 {[%clk 0:03:16.8]} 20. Qxd4 {[%clk 0:02:06.8]} 20...
Rxf1+ {[%clk 0:03:13.4]} 21. Bxf1 {[%clk 0:02:04.9]} 21... f6 {[%clk 0:03:10.4]}
22. Bf4 {[%clk 0:02:01.3]} 22... e5 {[%clk 0:03:09.1]} 23. Bxe5 {[%clk
0:01:59.6]} 23... fxe5 {[%clk 0:03:07.4]} 24. Qxe5 {[%clk 0:01:58.2]} 24... Qe6
{[%clk 0:03:06.2]} 25. Qc7 {[%clk 0:01:53.8]} 25... Qc8 {[%clk 0:02:40.3]} 26.
Qf4 {[%clk 0:01:45.5]} 26... g6 {[%clk 0:02:35]} 27. Qd4 {[%clk 0:01:35.3]}
27... Qc4 {[%clk 0:02:21.3]} 28. Qe5 {[%clk 0:01:19.4]} 28... Rf8 {[%clk
0:01:51.6]} 29. h4 {[%clk 0:01:10.8]} 29... Qe4 {[%clk 0:01:45.8]} 30. Qd6
{[%clk 0:01:03.1]} 30... Qb1 {[%clk 0:01:41.1]} 31. Qxd5+ {[%clk 0:00:55.6]}
31... Rf7 {[%clk 0:01:35.9]} 32. Kg2 {[%clk 0:00:46.6]} 32... Be4+ {[%clk
0:01:33.4]} 33. f3 {[%clk 0:00:43]} 33... Bxd5 {[%clk 0:01:32.2]} 0-1

[Event "Live Chess"]
[Site "Chess.com"]
[Date "2023.05.21"]
[Round "-"]
[White "wot-not"]
[Black "Hussamalhaidar"]
[Result "0-1"]
[WhiteElo "1536"]
[BlackElo "1152"]
[TimeControl "300"]
[EndTime "7:23:48 PDT"]
[Termination "Hussamalhaidar won by resignation"]

1. e4 {[%clk 0:04:53.5]} 1... e6 {[%clk 0:04:54.6]} 2. Nf3 {[%clk 0:04:52.6]}
2... c6 {[%clk 0:04:49.9]} 3. d4 {[%clk 0:04:52.3]} 3... d5 {[%clk 0:04:32.4]}
4. exd5 {[%clk 0:04:49.4]} 4... Qa5+ {[%clk 0:04:22.6]} 5. Nc3 {[%clk
0:04:46.4]} 5... cxd5 {[%clk 0:04:16.9]} 6. Bb5+ {[%clk 0:04:42.8]} 6... Bd7
{[%clk 0:04:03.2]} 7. Bxd7+ {[%clk 0:04:41.5]} 7... Nxd7 {[%clk 0:03:52.9]} 8.
O-O {[%clk 0:04:39.8]} 8... Bb4 {[%clk 0:03:46.4]} 9. Bd2 {[%clk 0:04:36.7]}
9... Ngf6 {[%clk 0:03:36.8]} 10. a3 {[%clk 0:04:29.7]} 10... Bxc3 {[%clk
0:03:20]} 11. Bxc3 {[%clk 0:04:28.6]} 11... Qc7 {[%clk 0:03:10.6]} 12. Ne5
{[%clk 0:04:25.8]} 12... Nxe5 {[%clk 0:03:06.5]} 13. dxe5 {[%clk 0:04:24.7]}
13... Ne4 {[%clk 0:03:04.3]} 14. Bb4 {[%clk 0:04:19.6]} 14... Rc8 {[%clk
0:02:56.7]} 15. c3 {[%clk 0:04:10.9]} 15... a5 {[%clk 0:02:47.3]} 16. f3 {[%clk
0:03:57.6]} 16... Qb6+ {[%clk 0:02:33.6]} 17. Kh1 {[%clk 0:03:49.4]} 17... Nf2+
{[%clk 0:02:27.9]} 18. Rxf2 {[%clk 0:03:48.3]} 18... Qxf2 {[%clk 0:02:23.9]} 19.
Bd6 {[%clk 0:03:45.9]} 19... Qxb2 {[%clk 0:01:58.9]} 20. Rb1 {[%clk 0:03:42.1]}
20... Qxc3 {[%clk 0:01:53.8]} 21. Rxb7 {[%clk 0:03:39.5]} 21... Qc1 {[%clk
0:01:37.9]} 22. Re7+ {[%clk 0:03:36.5]} 22... Kd8 {[%clk 0:01:34.6]} 0-1

[Event "Live Chess"]
[Site "Chess.com"]
[Date "2023.05.21"]
[Round "-"]
[White "Ferrarifan27"]
[Black "LiamClery2020"]
[Result "0-1"]
[WhiteElo "2046"]
[BlackElo "1983"]
[TimeControl "300"]
[EndTime "7:23:51 PDT"]
[Termination "LiamClery2020 won by checkmate"]

1. e4 {[%clk 0:04:58.5]} 1... Nf6 {[%clk 0:04:59.9]} 2. Nc3 {[%clk 0:04:54.8]}
2... e5 {[%clk 0:04:59]} 3. Bc4 {[%clk 0:04:52]} 3... Nc6 {[%clk 0:04:57.1]} 4.
Nf3 {[%clk 0:04:50.4]} 4... Nxe4 {[%clk 0:04:55.7]} 5. Nxe4 {[%clk 0:04:46.2]}
5... d5 {[%clk 0:04:54.9]} 6. Bb5 {[%clk 0:04:42.4]} 6... dxe4 {[%clk
0:04:53.1]} 7. Nxe5 {[%clk 0:04:41.9]} 7... Qd5 {[%clk 0:04:51.9]} 8. Bxc6+
{[%clk 0:04:39.5]} 8... bxc6 {[%clk 0:04:50.6]} 9. Ng4 {[%clk 0:04:34.8]} 9...
Bc5 {[%clk 0:04:44]} 10. O-O {[%clk 0:04:30.5]} 10... f5 {[%clk 0:04:38.5]} 11.
Ne3 {[%clk 0:04:28.9]} 11... Qf7 {[%clk 0:04:37.7]} 12. d3 {[%clk 0:04:21.4]}
12... Ba6 {[%clk 0:04:33.5]} 13. Re1 {[%clk 0:04:15.9]} 13... O-O {[%clk
0:04:29.5]} 14. dxe4 {[%clk 0:04:15.1]} 14... fxe4 {[%clk 0:04:28.2]} 15. f3
{[%clk 0:03:44.1]} 15... exf3 {[%clk 0:04:24.5]} 16. Qxf3 {[%clk 0:03:39.8]}
16... Qxf3 {[%clk 0:04:18.8]} 17. gxf3 {[%clk 0:03:39.1]} 17... Rxf3 {[%clk
0:04:18.4]} 18. Kg2 {[%clk 0:03:38.4]} 18... Raf8 {[%clk 0:04:16.2]} 19. Ng4
{[%clk 0:03:01.7]} 19... Bc8 {[%clk 0:04:12.5]} 20. Ne5 {[%clk 0:02:55.6]} 20...
Bh3+ {[%clk 0:04:07.8]} 21. Kh1 {[%clk 0:02:50.5]} 21... Rf1+ {[%clk 0:04:07.7]}
22. Rxf1 {[%clk 0:02:49.8]} 22... Rxf1# {[%clk 0:04:07.6]} 0-1

[Event "Live Chess"]
[Site "Chess.com"]
[Date "2023.05.21"]
[Round "-"]
[White "Cimon"]
[Black "domrobson"]
[Result "1-0"]
[WhiteElo "1845"]
[BlackElo "1744"]
[TimeControl "300"]
[EndTime "7:23:56 PDT"]
[Termination "Cimon won by resignation"]

1. Nf3 {[%clk 0:04:54.9]} 1... Nf6 {[%clk 0:04:58.7]} 2. c4 {[%clk 0:04:53.2]}
2... e6 {[%clk 0:04:57.3]} 3. d4 {[%clk 0:04:51.7]} 3... d5 {[%clk 0:04:56.7]}
4. Nc3 {[%clk 0:04:49.2]} 4... c6 {[%clk 0:04:56.3]} 5. Bg5 {[%clk 0:04:46.7]}
5... Nbd7 {[%clk 0:04:55.9]} 6. e3 {[%clk 0:04:45.1]} 6... Qa5 {[%clk
0:04:52.5]} 7. Be2 {[%clk 0:04:42.5]} 7... dxc4 {[%clk 0:04:50.4]} 8. O-O {[%clk
0:04:38.6]} 8... Bb4 {[%clk 0:04:46.5]} 9. Qc2 {[%clk 0:04:31.8]} 9... Bxc3
{[%clk 0:04:43.8]} 10. bxc3 {[%clk 0:04:30.8]} 10... O-O {[%clk 0:04:39.1]} 11.
Bxc4 {[%clk 0:04:29.2]} 11... b5 {[%clk 0:04:38.2]} 12. Bd3 {[%clk 0:04:27.1]}
12... h6 {[%clk 0:04:35.5]} 13. Bh4 {[%clk 0:04:21.4]} 13... a6 {[%clk
0:04:32.8]} 14. e4 {[%clk 0:04:01.5]} 14... c5 {[%clk 0:04:25.8]} 15. a4 {[%clk
0:03:50.7]} 15... Qc7 {[%clk 0:04:17.6]} 16. axb5 {[%clk 0:03:47.2]} 16... cxd4
{[%clk 0:04:12.7]} 17. cxd4 {[%clk 0:03:36.3]} 17... Bb7 {[%clk 0:04:11.5]} 18.
Qxc7 {[%clk 0:03:33.1]} 1-0

[Event "Live Chess"]
[Site "Chess.com"]
[Date "2023.05.21"]
[Round "-"]
[White "Olisingapore"]
[Black "FailsGambits"]
[Result "1/2-1/2"]
[WhiteElo "1785"]
[BlackElo "1337"]
[TimeControl "300"]
[EndTime "7:24:01 PDT"]
[Termination "Game drawn by repetition"]

1. d4 {[%clk 0:04:58.5]} 1... d5 {[%clk 0:04:59.2]} 2. c4 {[%clk 0:04:57.6]}
2... e6 {[%clk 0:04:59.1]} 3. Nf3 {[%clk 0:04:56.6]} 3... Nf6 {[%clk 0:04:58.6]}
4. g3 {[%clk 0:04:56.1]} 4... g6 {[%clk 0:04:53.8]} 5. Bg2 {[%clk 0:04:55.6]}
5... Bg7 {[%clk 0:04:53.1]} 6. O-O {[%clk 0:04:55.2]} 6... O-O {[%clk
0:04:51.5]} 7. Qc2 {[%clk 0:04:51.7]} 7... Bd7 {[%clk 0:04:38.9]} 8. Ne5 {[%clk
0:04:49.3]} 8... Nc6 {[%clk 0:04:31.9]} 9. Rd1 {[%clk 0:04:22.4]} 9... Re8
{[%clk 0:04:04.1]} 10. Nc3 {[%clk 0:04:18.2]} 10... Ne7 {[%clk 0:03:48.8]} 11.
Bg5 {[%clk 0:04:11.3]} 11... c6 {[%clk 0:03:40.7]} 12. e4 {[%clk 0:04:04.8]}
12... h6 {[%clk 0:03:36.8]} 13. Bxf6 {[%clk 0:03:59.7]} 13... Bxf6 {[%clk
0:03:36.7]} 14. cxd5 {[%clk 0:03:53.8]} 14... cxd5 {[%clk 0:03:07.4]} 15. exd5
{[%clk 0:03:49.7]} 15... Rc8 {[%clk 0:03:05.3]} 16. Nxd7 {[%clk 0:03:45.1]}
16... Qxd7 {[%clk 0:02:57.4]} 17. dxe6 {[%clk 0:03:44]} 17... Qxe6 {[%clk
0:02:49.8]} 18. d5 {[%clk 0:03:42.1]} 18... Qd7 {[%clk 0:02:23.2]} 19. Qd2
{[%clk 0:03:28.1]} 19... Red8 {[%clk 0:02:16.9]} 20. Qxh6 {[%clk 0:03:24.3]}
20... Bxc3 {[%clk 0:02:06]} 21. bxc3 {[%clk 0:03:15.2]} 21... Rxc3 {[%clk
0:02:05.9]} 22. d6 {[%clk 0:03:11.3]} 22... Nc6 {[%clk 0:01:39.3]} 23. h4 {[%clk
0:02:46.6]} 23... Qe6 {[%clk 0:01:15.1]} 24. h5 {[%clk 0:02:36.7]} 24... Rxd6
{[%clk 0:01:07.6]} 25. Rxd6 {[%clk 0:02:31.1]} 25... Qxd6 {[%clk 0:01:07.5]} 26.
hxg6 {[%clk 0:02:30.1]} 26... Qxg6 {[%clk 0:01:07.4]} 27. Qxg6+ {[%clk
0:02:24.9]} 27... fxg6 {[%clk 0:01:07.3]} 28. Rb1 {[%clk 0:02:20]} 28... b6
{[%clk 0:00:55.9]} 29. Bd5+ {[%clk 0:02:15.8]} 29... Kg7 {[%clk 0:00:50]} 30.
Bxc6 {[%clk 0:02:14.3]} 30... Rxc6 {[%clk 0:00:49.9]} 31. a4 {[%clk 0:02:13]}
31... Rc4 {[%clk 0:00:47.2]} 32. a5 {[%clk 0:02:09.9]} 32... bxa5 {[%clk
0:00:42.4]} 33. Ra1 {[%clk 0:02:09]} 33... a4 {[%clk 0:00:40.5]} 34. Kf1 {[%clk
0:02:08.7]} 34... a5 {[%clk 0:00:39.3]} 35. Ke2 {[%clk 0:02:07.5]} 35... Rc2+
{[%clk 0:00:37.9]} 36. Ke3 {[%clk 0:02:06.2]} 36... Rc3+ {[%clk 0:00:34.4]} 37.
Kd2 {[%clk 0:02:04.4]} 37... Rc4 {[%clk 0:00:32.5]} 38. Kd3 {[%clk 0:02:02.9]}
38... Rb4 {[%clk 0:00:31.4]} 39. Kc2 {[%clk 0:01:57.5]} 39... Kf6 {[%clk
0:00:26.9]} 40. Rb1 {[%clk 0:01:55.4]} 40... Kg5 {[%clk 0:00:24.4]} 41. f3
{[%clk 0:01:48.9]} 41... a3 {[%clk 0:00:18.9]} 42. Rxb4 {[%clk 0:01:44.5]} 42...
axb4 {[%clk 0:00:18.8]} 43. Kb3 {[%clk 0:01:44]} 43... Kf5 {[%clk 0:00:14.7]}
44. Ka2 {[%clk 0:01:42.4]} 44... Kg5 {[%clk 0:00:13.4]} 45. Kb3 {[%clk
0:01:41.9]} 45... Kf5 {[%clk 0:00:13.3]} 46. Ka2 {[%clk 0:01:40.1]} 46... Kg5
{[%clk 0:00:12.3]} 47. Ka1 {[%clk 0:01:39.6]} 47... Kf5 {[%clk 0:00:11.3]} 48.
Ka2 {[%clk 0:01:38.9]} 1/2-1/2

[Event "Live Chess"]
[Site "Chess.com"]
[Date "2023.05.21"]
[Round "-"]
[White "WilliamofOrange16th"]
[Black "Biranidun"]
[Result "0-1"]
[WhiteElo "1858"]
[BlackElo "2518"]
[TimeControl "300"]
[EndTime "7:24:03 PDT"]
[Termination "Biranidun won by resignation"]

1. e4 {[%clk 0:04:56.8]} 1... c5 {[%clk 0:04:58.1]} 2. b4 {[%clk 0:04:55.4]}
2... cxb4 {[%clk 0:04:57.2]} 3. a3 {[%clk 0:04:54.9]} 3... d5 {[%clk 0:04:56.7]}
4. exd5 {[%clk 0:04:53.2]} 4... Qxd5 {[%clk 0:04:56.6]} 5. Nf3 {[%clk
0:04:52.4]} 5... e5 {[%clk 0:04:55.4]} 6. axb4 {[%clk 0:04:51]} 6... Bxb4 {[%clk
0:04:54]} 7. c3 {[%clk 0:04:50]} 7... Bd6 {[%clk 0:04:53.2]} 8. Na3 {[%clk
0:04:45.1]} 8... Nc6 {[%clk 0:04:49.7]} 9. Nb5 {[%clk 0:04:43.2]} 9... Bb8
{[%clk 0:04:33.7]} 10. d3 {[%clk 0:04:34.3]} 10... Qxb5 {[%clk 0:04:32.3]} 11.
d4 {[%clk 0:04:28]} 11... Qd5 {[%clk 0:04:31]} 12. c4 {[%clk 0:04:25.7]} 12...
Qe4+ {[%clk 0:04:29.9]} 13. Be2 {[%clk 0:04:25.2]} 13... exd4 {[%clk 0:04:28.6]}
0-1

[Event "Live Chess"]
[Site "Chess.com"]
[Date "2023.05.21"]
[Round "-"]
[White "Duke_of_Bebington"]
[Black "LaupMiths"]
[Result "0-1"]
[WhiteElo "1556"]
[BlackElo "1821"]
[TimeControl "300"]
[EndTime "7:24:13 PDT"]
[Termination "LaupMiths won by resignation"]

1. e4 {[%clk 0:04:58.5]} 1... c5 {[%clk 0:04:58.3]} 2. c3 {[%clk 0:04:57.1]}
2... Nf6 {[%clk 0:04:55.7]} 3. e5 {[%clk 0:04:55.4]} 3... Nd5 {[%clk 0:04:54.5]}
4. d4 {[%clk 0:04:54.7]} 4... cxd4 {[%clk 0:04:51.6]} 5. cxd4 {[%clk 0:04:52.6]}
5... Nc6 {[%clk 0:04:51]} 6. a4 {[%clk 0:04:51.4]} 6... d6 {[%clk 0:04:47.1]} 7.
Nf3 {[%clk 0:04:48.9]} 7... e6 {[%clk 0:04:40.1]} 8. Bc4 {[%clk 0:04:45.7]} 8...
dxe5 {[%clk 0:04:38.7]} 9. Nxe5 {[%clk 0:04:43.7]} 9... Nxe5 {[%clk 0:04:37.5]}
10. dxe5 {[%clk 0:04:42.9]} 10... Qc7 {[%clk 0:04:18.7]} 11. b3 {[%clk
0:04:37.9]} 11... Qxe5+ {[%clk 0:04:14.9]} 12. Kf1 {[%clk 0:04:36.7]} 12... Qxa1
{[%clk 0:04:11.6]} 13. Bxd5 {[%clk 0:04:34.5]} 13... exd5 {[%clk 0:04:11.2]} 14.
Qe2+ {[%clk 0:04:32.8]} 0-1

[Event "Live Chess"]
[Site "Chess.com"]
[Date "2023.05.21"]
[Round "-"]
[White "Missedidea"]
[Black "Pablo_dmp"]
[Result "0-1"]
[WhiteElo "1777"]
[BlackElo "1865"]
[TimeControl "300"]
[EndTime "7:24:14 PDT"]
[Termination "Pablo_dmp won by resignation"]

1. d4 {[%clk 0:04:58.6]} 1... Nf6 {[%clk 0:04:58.8]} 2. c4 {[%clk 0:04:57.2]}
2... e6 {[%clk 0:04:58.1]} 3. Nc3 {[%clk 0:04:56.2]} 3... Bb4 {[%clk 0:04:57.7]}
4. e3 {[%clk 0:04:54.3]} 4... O-O {[%clk 0:04:56.4]} 5. Bd3 {[%clk 0:04:52.8]}
5... c5 {[%clk 0:04:55.2]} 6. Ne2 {[%clk 0:04:49.4]} 6... d5 {[%clk 0:04:53.9]}
7. O-O {[%clk 0:04:47.3]} 7... dxc4 {[%clk 0:04:48]} 8. Bxc4 {[%clk 0:04:45.5]}
8... b6 {[%clk 0:04:46.7]} 9. a3 {[%clk 0:04:43.9]} 9... Bxc3 {[%clk 0:04:45.9]}
10. Nxc3 {[%clk 0:04:42.3]} 10... Bb7 {[%clk 0:04:42.4]} 11. b4 {[%clk
0:04:30.8]} 11... cxb4 {[%clk 0:04:37.7]} 12. axb4 {[%clk 0:04:28.5]} 12... Qc7
{[%clk 0:04:37.3]} 13. Qe2 {[%clk 0:04:13.3]} 13... Rc8 {[%clk 0:04:35.6]} 14.
Nb5 {[%clk 0:04:11.3]} 14... Qxc4 {[%clk 0:04:32.8]} 15. Qxc4 {[%clk 0:04:09.6]}
15... Rxc4 {[%clk 0:04:32.7]} 16. Nd6 {[%clk 0:04:08]} 16... Rc7 {[%clk
0:04:31.1]} 17. b5 {[%clk 0:03:57]} 17... Bd5 {[%clk 0:04:27.3]} 18. f3 {[%clk
0:03:50.2]} 18... Nbd7 {[%clk 0:04:17.2]} 19. e4 {[%clk 0:03:48.1]} 19... Bb7
{[%clk 0:04:11.9]} 20. Bf4 {[%clk 0:03:43]} 20... Nh5 {[%clk 0:03:57.4]} 21. Be3
{[%clk 0:03:29.8]} 21... Nf8 {[%clk 0:03:32.4]} 22. g4 {[%clk 0:03:25.9]} 22...
Nf6 {[%clk 0:03:30.7]} 23. Bf4 {[%clk 0:03:22.8]} 23... Rd7 {[%clk 0:03:13.4]}
24. Rfc1 {[%clk 0:03:14]} 24... Ng6 {[%clk 0:03:04.1]} 25. Be5 {[%clk
0:02:46.1]} 25... Nxe5 {[%clk 0:03:01.6]} 26. dxe5 {[%clk 0:02:44.6]} 26... Ne8
{[%clk 0:02:55.1]} 27. Nxe8 {[%clk 0:02:40]} 27... Rxe8 {[%clk 0:02:55]} 28.
Rxa7 {[%clk 0:02:37.3]} 28... Bc6 {[%clk 0:02:50.9]} 29. Rxd7 {[%clk 0:02:25.5]}
29... Bxd7 {[%clk 0:02:50.8]} 30. Rb1 {[%clk 0:02:22.9]} 30... Rc8 {[%clk
0:02:49.2]} 31. Kf2 {[%clk 0:02:21.7]} 31... Rc5 {[%clk 0:02:47.6]} 32. Rd1
{[%clk 0:02:17.3]} 32... Rc7 {[%clk 0:02:43.9]} 33. Rd6 {[%clk 0:02:13.5]} 33...
Rb7 {[%clk 0:02:41.9]} 34. Ke3 {[%clk 0:02:09]} 34... Kf8 {[%clk 0:02:40.9]} 35.
f4 {[%clk 0:02:03.8]} 35... Ke7 {[%clk 0:02:40]} 36. f5 {[%clk 0:02:01.8]} 36...
exf5 {[%clk 0:02:37.6]} 37. exf5 {[%clk 0:01:58.5]} 37... Bxb5 {[%clk
0:02:35.4]} 38. f6+ {[%clk 0:01:52.8]} 38... gxf6 {[%clk 0:02:33.2]} 39. Rxf6
{[%clk 0:01:51.1]} 39... Bd7 {[%clk 0:02:28.7]} 40. h3 {[%clk 0:01:46.8]} 40...
b5 {[%clk 0:02:20.7]} 41. Kd3 {[%clk 0:01:45.8]} 41... b4 {[%clk 0:02:18.5]} 42.
Kc2 {[%clk 0:01:44.6]} 42... b3+ {[%clk 0:02:14.8]} 43. Kb2 {[%clk 0:01:43.3]}
43... Be6 {[%clk 0:02:12.2]} 44. Rh6 {[%clk 0:01:25.9]} 44... Rb5 {[%clk
0:02:10.3]} 45. Rxh7 {[%clk 0:01:20.6]} 45... Rxe5 {[%clk 0:02:09.2]} 46. h4
{[%clk 0:01:14.9]} 46... Re2+ {[%clk 0:02:07.8]} 47. Kb1 {[%clk 0:01:06.2]}
47... Bxg4 {[%clk 0:02:06]} 48. Rg7 {[%clk 0:01:03.4]} 48... Bf5+ {[%clk
0:02:04.3]} 0-1

[Event "Live Chess"]
[Site "Chess.com"]
[Date "2023.05.21"]
[Round "-"]
[White "ameetghasi100"]
[Black "ossie57"]
[Result "1-0"]
[WhiteElo "2586"]
[BlackElo "1840"]
[TimeControl "300"]
[EndTime "7:24:17 PDT"]
[Termination "ameetghasi100 won by resignation"]

1. c4 {[%clk 0:04:57.2]} 1... c5 {[%clk 0:04:58.6]} 2. Nc3 {[%clk 0:04:57.1]}
2... Nc6 {[%clk 0:04:55.9]} 3. e3 {[%clk 0:04:57]} 3... g6 {[%clk 0:04:50.9]} 4.
Nf3 {[%clk 0:04:56.9]} 4... Bg7 {[%clk 0:04:50.2]} 5. h4 {[%clk 0:04:56.8]} 5...
Nf6 {[%clk 0:04:46.7]} 6. h5 {[%clk 0:04:56.7]} 6... Nxh5 {[%clk 0:04:45.5]} 7.
Rxh5 {[%clk 0:04:54.1]} 7... gxh5 {[%clk 0:04:44.6]} 8. Nh4 {[%clk 0:04:53.4]}
8... Bxc3 {[%clk 0:04:36.6]} 9. bxc3 {[%clk 0:04:53.3]} 9... Ne5 {[%clk
0:04:22]} 10. Qxh5 {[%clk 0:04:49.5]} 10... Ng6 {[%clk 0:04:20.4]} 11. Nf5
{[%clk 0:04:43.9]} 11... d5 {[%clk 0:03:58.3]} 12. cxd5 {[%clk 0:04:41.4]} 12...
Bxf5 {[%clk 0:03:45.5]} 13. Qxf5 {[%clk 0:04:38.5]} 13... O-O {[%clk 0:03:35.3]}
14. c4 {[%clk 0:04:36.4]} 14... Qd6 {[%clk 0:03:18.6]} 15. Bb2 {[%clk
0:04:32.5]} 15... a6 {[%clk 0:02:26.6]} 16. Bd3 {[%clk 0:04:27.2]} 16... b5
{[%clk 0:02:21.2]} 17. Ke2 {[%clk 0:04:17.3]} 17... bxc4 {[%clk 0:02:03.7]} 18.
Bxc4 {[%clk 0:04:17.2]} 18... Qb6 {[%clk 0:01:46]} 19. Bc3 {[%clk 0:04:14.9]}
19... Qd6 {[%clk 0:01:40]} 20. Rh1 {[%clk 0:04:12.6]} 20... e5 {[%clk
0:01:30.4]} 21. dxe6 {[%clk 0:04:07.7]} 21... fxe6 {[%clk 0:01:23.4]} 22. Bxe6+
{[%clk 0:04:04.7]} 1-0